fUSD/lending_fUSD_20260517
["ID","MTS","AMOUNT","RATE_DAILY","PERIOD"]
[422457058,1778967048000,-500.0,0.00028,2]
[422457063,1778967048000,-500.0,0.00028,2]
[422457061,1778967048000,-500.0,0.00028,2]
[422457068,1778967048000,-500.0,0.00028,2]
[422457067,1778967048000,-500.0,0.00028,2]
[422457062,1778967048000,-500.0,0.00028,2]
[422457065,1778967048000,-500.0,0.00028,2]
[422457064,1778967048000,-500.0,0.00028,2]
[422457066,1778967048000,-500.0,0.00028,2]
[422457054,1778967048000,-500.0,0.00028,2]
[422457099,1778967048000,-500.0,0.00028,2]
[422457103,1778967048000,-500.0,0.00028,2]
[422457109,1778967048000,-500.0,0.00028,2]
[422457130,1778967048000,-500.0,0.00028,2]
[422457131,1778967048000,-500.0,0.00028,2]
[422457140,1778967048000,-186.4,0.00028,2]
[422457143,1778967048000,-240.62685798,0.00028,4]
[422457142,1778967048000,-151.0,0.00028,7]
[422457144,1778967048000,-161.0,0.00028152,3]
[422457151,1778967048000,-152.0,0.00028271,2]
[422457141,1778967048000,-151.0,0.00028,7]
[422457146,1778967048000,-1623.0,0.00028267,5]
[422457145,1778967048000,-546.0,0.00028205,3]
[422457149,1778967048000,-152.0,0.00028271,2]
[422457147,1778967048000,-1294.0,0.00028267,5]
[422457148,1778967048000,-851.9,0.00028267,2]
[422457153,1778967048000,-152.0,0.00028271,2]
[422457152,1778967048000,-152.0,0.00028271,2]
[422457154,1778967048000,-152.0,0.00028271,2]
[422457156,1778967048000,-152.0,0.00028271,2]
[422457155,1778967048000,-152.0,0.00028271,2]
[422457157,1778967048000,-152.0,0.00028271,2]
[422457162,1778967048000,-450.0,0.00028344,2]
[422457159,1778967048000,-152.0,0.00028271,2]
[422457158,1778967048000,-152.0,0.00028271,2]
[422457163,1778967048000,-437.4,0.00028344,2]
[422457160,1778967048000,-174.61919141,0.00028271,2]
[422457161,1778967048000,-151.0,0.00028271,2]
[422457164,1778967048000,-1125.62062013,0.00028367,5]
[422457102,1778967048000,-500.0,0.00028,2]
[422457136,1778967048000,-500.0,0.00028,2]
[422457135,1778967048000,-500.0,0.00028,2]
[422457150,1778967048000,-152.0,0.00028271,2]
[422457134,1778967048000,-500.0,0.00028,2]
[422457132,1778967048000,-500.0,0.00028,2]
[422457101,1778967048000,-500.0,0.00028,2]
[422457105,1778967048000,-500.0,0.00028,2]
[422457108,1778967048000,-500.0,0.00028,2]
[422457107,1778967048000,-500.0,0.00028,2]
[422457106,1778967048000,-500.0,0.00028,2]
[422457112,1778967048000,-500.0,0.00028,2]
[422457114,1778967048000,-500.0,0.00028,2]
[422457115,1778967048000,-500.0,0.00028,2]
[422457116,1778967048000,-500.0,0.00028,2]
[422457113,1778967048000,-500.0,0.00028,2]
[422457120,1778967048000,-500.0,0.00028,2]
[422457121,1778967048000,-500.0,0.00028,2]
[422457117,1778967048000,-500.0,0.00028,2]
[422457104,1778967048000,-500.0,0.00028,2]
[422457119,1778967048000,-500.0,0.00028,2]
[422457118,1778967048000,-500.0,0.00028,2]
[422457128,1778967048000,-500.0,0.00028,2]
[422457137,1778967048000,-500.0,0.00028,2]
[422457129,1778967048000,-500.0,0.00028,2]
[422457139,1778967048000,-170.940753,0.00028,2]
[422457126,1778967048000,-500.0,0.00028,2]
[422457133,1778967048000,-500.0,0.00028,2]
[422457127,1778967048000,-500.0,0.00028,2]
[422457125,1778967048000,-500.0,0.00028,2]
[422457124,1778967048000,-500.0,0.00028,2]
[422457123,1778967048000,-500.0,0.00028,2]
[422457122,1778967048000,-500.0,0.00028,2]
[422457138,1778967048000,-500.0,0.00028,2]
[422457216,1778967049000,-2923.63,0.00028788,30]
[422457205,1778967049000,-1362.61,0.00028726,2]
[422457206,1778967049000,-546.0,0.00028739,3]
[422457197,1778967049000,-404.07,0.000287,7]
[422457200,1778967049000,-379.84,0.00028725,2]
[422457201,1778967049000,-390.94,0.00028725,2]
[422457203,1778967049000,-380.2,0.00028725,2]
[422457202,1778967049000,-2924.08,0.00028725,2]
[422457199,1778967049000,-2923.63,0.00028725,2]
[422457198,1778967049000,-8321.47,0.000287,14]
[422457212,1778967049000,-1360.64,0.00028757,7]
[422457204,1778967049000,-1360.64,0.00028726,2]
[422457211,1778967049000,-380.2,0.00028756,7]
[422457210,1778967049000,-2924.08,0.00028756,7]
[422457213,1778967049000,-1362.61,0.00028757,7]
[422457209,1778967049000,-390.94,0.00028756,7]
[422457208,1778967049000,-379.84,0.00028756,7]
[422457214,1778967049000,-163.57756459,0.00028767,30]
[422457215,1778967049000,-151.0,0.00028767,7]
[422457217,1778967049000,-379.84,0.00028788,30]
[422457219,1778967049000,-2924.08,0.00028788,30]
[422457220,1778967049000,-380.2,0.00028788,30]
[422457221,1778967049000,-1360.64,0.00028789,30]
[422457223,1778967049000,-181.08010149,0.00028819,2]
[422457222,1778967049000,-1362.61,0.00028789,30]
[422457218,1778967049000,-390.94,0.00028788,30]
[422457194,1778967049000,-1360.64,0.00028694,30]
[422457207,1778967049000,-2923.63,0.00028756,7]
[422457196,1778967049000,-1198.05,0.000287,7]
[422457166,1778967049000,-227.12,0.00028469,30]
[422457193,1778967049000,-380.2,0.00028693,30]
[422457165,1778967049000,-622.845595,0.00028398,10]
[422457169,1778967049000,-390.94,0.0002863,2]
[422457167,1778967049000,-2923.63,0.0002863,2]
[422457170,1778967049000,-2924.08,0.0002863,2]
[422457175,1778967049000,-151.0,0.00028661,7]
[422457172,1778967049000,-1360.64,0.00028631,2]
[422457171,1778967049000,-380.2,0.0002863,2]
[422457174,1778967049000,-151.0,0.00028661,7]
[422457173,1778967049000,-1362.61,0.00028631,2]
[422457176,1778967049000,-151.0,0.00028661,7]
[422457178,1778967049000,-151.0,0.00028661,7]
[422457179,1778967049000,-151.0,0.00028661,7]
[422457168,1778967049000,-379.84,0.0002863,2]
[422457177,1778967049000,-151.0,0.00028661,7]
[422457181,1778967049000,-151.0,0.00028661,7]
[422457191,1778967049000,-390.94,0.00028693,30]
[422457184,1778967049000,-390.94,0.00028661,7]
[422457189,1778967049000,-2923.63,0.00028693,30]
[422457182,1778967049000,-2923.63,0.00028661,7]
[422457187,1778967049000,-1360.64,0.00028662,7]
[422457180,1778967049000,-151.0,0.00028661,7]
[422457192,1778967049000,-2924.08,0.00028693,30]
[422457227,1778967049000,-2924.08,0.0002882,2]
[422457186,1778967049000,-380.2,0.00028661,7]
[422457188,1778967049000,-1362.61,0.00028662,7]
[422457183,1778967049000,-379.84,0.00028661,7]
[422457190,1778967049000,-379.84,0.00028693,30]
[422457195,1778967049000,-1362.61,0.00028694,30]
[422457224,1778967049000,-2923.63,0.0002882,2]
[422457185,1778967049000,-2924.08,0.00028661,7]
[422457225,1778967049000,-379.84,0.0002882,2]
[422457260,1778967049000,-2923.63,0.00028947,7]
[422457257,1778967049000,-1362.61,0.00028916,2]
[422457255,1778967049000,-380.2,0.00028915,2]
[422457264,1778967049000,-2924.08,0.00028947,7]
[422457263,1778967049000,-1362.61,0.00028947,7]
[422457265,1778967049000,-380.2,0.00028947,7]
[422457262,1778967049000,-390.94,0.00028947,7]
[422457267,1778967049000,-2923.63,0.00028979,30]
[422457270,1778967049000,-1362.61,0.00028979,30]
[422457268,1778967049000,-379.84,0.00028979,30]
[422457271,1778967049000,-2924.08,0.00028979,30]
[422457273,1778967049000,-208.44072055,0.00029,30]
[422457269,1778967049000,-390.94,0.00028979,30]
[422457259,1778967049000,-1360.64,0.00028947,7]
[422457274,1778967049000,-2923.63,0.0002901,2]
[422457276,1778967049000,-390.94,0.0002901,2]
[422457277,1778967049000,-2924.08,0.0002901,2]
[422457275,1778967049000,-379.84,0.0002901,2]
[422457279,1778967049000,-1360.64,0.00029011,2]
[422457281,1778967049000,-1360.64,0.00029042,7]
[422457284,1778967049000,-390.94,0.00029042,7]
[422457280,1778967049000,-1362.61,0.00029011,2]
[422457283,1778967049000,-379.84,0.00029042,7]
[422457282,1778967049000,-2923.63,0.00029042,7]
[422457278,1778967049000,-380.2,0.0002901,2]
[422457287,1778967049000,-380.2,0.00029042,7]
[422457286,1778967049000,-2924.08,0.00029042,7]
[422457229,1778967049000,-1360.64,0.00028821,2]
[422457272,1778967049000,-380.2,0.00028979,30]
[422457261,1778967049000,-379.84,0.00028947,7]
[422457285,1778967049000,-1362.61,0.00029042,7]
[422457266,1778967049000,-1360.64,0.00028979,30]
[422457258,1778967049000,-150.0,0.00028945,30]
[422457226,1778967049000,-390.94,0.0002882,2]
[422457241,1778967049000,-390.94,0.00028883,30]
[422457231,1778967049000,-1360.64,0.00028852,7]
[422457230,1778967049000,-1362.61,0.00028821,2]
[422457240,1778967049000,-379.84,0.00028883,30]
[422457233,1778967049000,-379.84,0.00028852,7]
[422457236,1778967049000,-2924.08,0.00028852,7]
[422457234,1778967049000,-390.94,0.00028852,7]
[422457242,1778967049000,-2924.08,0.00028883,30]
[422457239,1778967049000,-2923.63,0.00028883,30]
[422457237,1778967049000,-380.2,0.00028852,7]
[422457232,1778967049000,-2923.63,0.00028852,7]
[422457235,1778967049000,-1362.61,0.00028852,7]
[422457228,1778967049000,-380.2,0.0002882,2]
[422457244,1778967049000,-1360.64,0.00028884,30]
[422457250,1778967049000,-199.293253,0.00028915,7]
[422457256,1778967049000,-1360.64,0.00028916,2]
[422457251,1778967049000,-2923.63,0.00028915,2]
[422457248,1778967049000,-199.293253,0.00028915,7]
[422457238,1778967049000,-151.0,0.00028883,7]
[422457249,1778967049000,-199.293253,0.00028915,7]
[422457252,1778967049000,-379.84,0.00028915,2]
[422457245,1778967049000,-1362.61,0.00028884,30]
[422457247,1778967049000,-199.293253,0.00028915,7]
[422457246,1778967049000,-1000.0,0.00028898,21]
[422457243,1778967049000,-380.2,0.00028883,30]
[422457254,1778967049000,-2924.08,0.00028915,2]
[422457253,1778967049000,-390.94,0.00028915,2]
[422457327,1778967050000,-380.2,0.00029201,2]
[422457325,1778967050000,-1362.61,0.00029201,2]
[422457336,1778967050000,-1486.69,0.00029242,7]
[422457326,1778967050000,-2924.08,0.00029201,2]
[422457319,1778967050000,-174.88300058,0.00029181,7]
[422457316,1778967050000,-380.2,0.00029169,30]
[422457324,1778967050000,-390.94,0.00029201,2]
[422457323,1778967050000,-2923.63,0.00029201,2]
[422457315,1778967050000,-2924.08,0.00029169,30]
[422457320,1778967050000,-176.99812295,0.00029181,7]
[422457322,1778967050000,-379.84,0.00029201,2]
[422457332,1778967050000,-391.13,0.00029232,7]
[422457329,1778967050000,-390.64,0.00029232,7]
[422457328,1778967050000,-1360.83,0.00029232,7]
[422457331,1778967050000,-2923.68,0.00029232,7]
[422457330,1778967050000,-379.92,0.00029232,7]
[422457334,1778967050000,-2924.13,0.00029232,7]
[422457333,1778967050000,-1362.66,0.00029232,7]
[422457337,1778967050000,-546.0,0.00029273,4]
[422457339,1778967050000,-187.78006525,0.00029367,2]
[422457340,1778967050000,-1330.58413709,0.00029375,2]
[422457341,1778967050000,-151.0,0.00029382,7]
[422457344,1778967050000,-9025.1384777,0.00029385,2]
[422457318,1778967050000,-151.61502381,0.00029178,7]
[422457342,1778967050000,-151.0,0.00029382,7]
[422457335,1778967050000,-380.29,0.00029232,7]
[422457321,1778967050000,-1360.64,0.00029201,2]
[422457297,1778967050000,-379.84,0.00029105,2]
[422457314,1778967050000,-1362.61,0.00029169,30]
[422457338,1778967050000,-1000.0,0.00029299,14]
[422457289,1778967050000,-2923.63,0.00029074,30]
[422457288,1778967050000,-1360.64,0.00029074,30]
[422457291,1778967050000,-390.94,0.00029074,30]
[422457301,1778967050000,-1360.64,0.00029106,2]
[422457292,1778967050000,-1362.61,0.00029074,30]
[422457296,1778967050000,-2923.63,0.00029105,2]
[422457290,1778967050000,-379.84,0.00029074,30]
[422457298,1778967050000,-390.94,0.00029105,2]
[422457295,1778967050000,-1174.53,0.000291,7]
[422457294,1778967050000,-380.2,0.00029074,30]
[422457293,1778967050000,-2924.08,0.00029074,30]
[422457317,1778967050000,-150.25224235,0.00029178,2]
[422457299,1778967050000,-2924.08,0.00029105,2]
[422457304,1778967050000,-379.84,0.00029137,7]
[422457302,1778967050000,-1362.61,0.00029106,2]
[422457305,1778967050000,-2923.63,0.00029137,7]
[422457307,1778967050000,-1362.61,0.00029137,7]
[422457303,1778967050000,-1360.64,0.00029137,7]
[422457310,1778967050000,-1360.64,0.00029169,30]
[422457312,1778967050000,-2923.63,0.00029169,30]
[422457306,1778967050000,-390.94,0.00029137,7]
[422457311,1778967050000,-379.84,0.00029169,30]
[422457313,1778967050000,-390.94,0.00029169,30]
[422457309,1778967050000,-380.2,0.00029137,7]
[422457308,1778967050000,-2924.08,0.00029137,7]
[422457300,1778967050000,-380.2,0.00029105,2]
[422457345,1778967050000,-387658.9096043,0.00029385,2]
[422457343,1778967050000,-461.01707129,0.00029384,2]
[422457347,1778967050000,-23367.7696211,0.00029385,2]
[422457378,1778967050000,-151.0,0.00029385,7]
[422457376,1778967050000,-2123.786567,0.00029385,7]
[422457379,1778967050000,-1198.758275,0.00029385,7]
[422457381,1778967050000,-1198.758275,0.00029385,7]
[422457383,1778967050000,-374.778137,0.00029385,7]
[422457380,1778967050000,-1198.758275,0.00029385,7]
[422457382,1778967050000,-374.778137,0.00029385,7]
[422457385,1778967050000,-374.778137,0.00029385,7]
[422457395,1778967050000,-279.30719,0.00029385,7]
[422457386,1778967050000,-151.0,0.00029385,7]
[422457388,1778967050000,-305.660067,0.00029385,7]
[422457394,1778967050000,-463.691199,0.00029385,7]
[422457377,1778967050000,-1198.758275,0.00029385,7]
[422457387,1778967050000,-305.660067,0.00029385,7]
[422457391,1778967050000,-305.660067,0.00029385,7]
[422457393,1778967050000,-463.691199,0.00029385,7]
[422457392,1778967050000,-463.691199,0.00029385,7]
[422457389,1778967050000,-305.660067,0.00029385,7]
[422457397,1778967050000,-279.30719,0.00029385,7]
[422457396,1778967050000,-279.30719,0.00029385,7]
[422457402,1778967050000,-528.657617,0.00029385,7]
[422457399,1778967050000,-528.657617,0.00029385,7]
[422457401,1778967050000,-528.657617,0.00029385,7]
[422457403,1778967050000,-184.204153,0.00029385,7]
[422457398,1778967050000,-279.30719,0.00029385,7]
[422457346,1778967050000,-257683.5838111,0.00029385,2]
[422457390,1778967050000,-463.691199,0.00029385,7]
[422457375,1778967050000,-2123.786567,0.00029385,7]
[422457400,1778967050000,-102348.3681903,0.00029385,2]
[422457384,1778967050000,-374.778137,0.00029385,7]
[422457348,1778967050000,-144207.8774615,0.00029385,2]
[422457350,1778967050000,-151.0,0.00029385,7]
[422457349,1778967050000,-151.0,0.00029385,7]
[422457351,1778967050000,-7561.1073649,0.00029385,2]
[422457359,1778967050000,-284.289204,0.00029385,7]
[422457360,1778967050000,-284.289204,0.00029385,7]
[422457352,1778967050000,-151.0,0.00029385,7]
[422457373,1778967050000,-2123.786567,0.00029385,7]
[422457357,1778967050000,-151.0,0.00029385,7]
[422457354,1778967050000,-151.0,0.00029385,7]
[422457353,1778967050000,-151.0,0.00029385,7]
[422457356,1778967050000,-151.0,0.00029385,7]
[422457358,1778967050000,-1642.154766,0.00029385,2]
[422457355,1778967050000,-151.0,0.00029385,7]
[422457361,1778967050000,-284.289204,0.00029385,7]
[422457362,1778967050000,-284.289204,0.00029385,7]
[422457374,1778967050000,-2123.786567,0.00029385,7]
[422457372,1778967050000,-151.0,0.00029385,7]
[422457370,1778967050000,-151.0,0.00029385,7]
[422457366,1778967050000,-151.0,0.00029385,7]
[422457364,1778967050000,-151.0,0.00029385,7]
[422457365,1778967050000,-151.0,0.00029385,7]
[422457368,1778967050000,-151.0,0.00029385,7]
[422457367,1778967050000,-151.0,0.00029385,7]
[422457371,1778967050000,-151.0,0.00029385,7]
[422457363,1778967050000,-7561.1073649,0.00029385,2]
[422457369,1778967050000,-151.0,0.00029385,7]
[422457441,1778967051000,-1000.0,0.00030099,2]
[422457453,1778967051000,-387901.15585108,0.0003013,7]
[422457444,1778967051000,-600.73407744,0.000301,2]
[422457440,1778967051000,-1000.0,0.00030077,15]
[422457438,1778967051000,-208.44072055,0.0003,10]
[422457442,1778967051000,-151.0,0.000301,2]
[422457437,1778967051000,-1000.0,0.00029999,5]
[422457436,1778967051000,-1000.0,0.00029997,24]
[422457433,1778967051000,-1000.0,0.00029834,30]
[422457434,1778967051000,-1198.05,0.000299,7]
[422457439,1778967051000,-215.03962261,0.0003,7]
[422457443,1778967051000,-402.7953808,0.000301,2]
[422457456,1778967051000,-151.0,0.0003013,7]
[422457454,1778967051000,-200.0,0.0003013,2]
[422457452,1778967051000,-1000.0,0.00030129,7]
[422457447,1778967051000,-705.09034753,0.000301,2]
[422457450,1778967051000,-1026.0,0.000301,7]
[422457451,1778967051000,-1000.0,0.00030128,10]
[422457445,1778967051000,-600.73407741,0.000301,2]
[422457449,1778967051000,-705.09034751,0.000301,2]
[422457448,1778967051000,-705.09034751,0.000301,2]
[422457455,1778967051000,-151.0,0.0003013,7]
[422457458,1778967051000,-151.0,0.0003013,7]
[422457457,1778967051000,-151.0,0.0003013,7]
[422457460,1778967051000,-151.0,0.0003013,7]
[422457435,1778967051000,-194.72792766,0.00029915,2]
[422457446,1778967051000,-600.73407741,0.000301,2]
[422457432,1778967051000,-24495.87741852,0.0002983,2]
[422457414,1778967051000,-151.0,0.00029385,7]
[422457429,1778967051000,-404.07,0.000297,7]
[422457462,1778967051000,-232.716665,0.0003013,7]
[422457407,1778967051000,-184.204153,0.00029385,7]
[422457405,1778967051000,-184.204153,0.00029385,7]
[422457406,1778967051000,-184.204153,0.00029385,7]
[422457404,1778967051000,-528.657617,0.00029385,7]
[422457410,1778967051000,-1850.140719,0.00029385,7]
[422457408,1778967051000,-1850.140719,0.00029385,7]
[422457413,1778967051000,-151.0,0.00029385,7]
[422457419,1778967051000,-314.0,0.000296,2]
[422457415,1778967051000,-151.0,0.00029385,7]
[422457409,1778967051000,-1850.140719,0.00029385,7]
[422457416,1778967051000,-151.0,0.00029385,7]
[422457431,1778967051000,-546.0,0.00029807,4]
[422457411,1778967051000,-1850.140719,0.00029385,7]
[422457412,1778967051000,-151.0,0.00029385,7]
[422457418,1778967051000,-1000.0,0.000296,2]
[422457421,1778967051000,-308.0,0.000296,2]
[422457420,1778967051000,-884.0,0.000296,2]
[422457422,1778967051000,-150.0,0.00029637,2]
[422457423,1778967051000,-1270.0,0.00029637,2]
[422457424,1778967051000,-1223.0,0.00029637,2]
[422457425,1778967051000,-1354.0,0.00029637,2]
[422457427,1778967051000,-299.33286419,0.0002964,2]
[422457430,1778967051000,-8321.47,0.000297,14]
[422457428,1778967051000,-346.01837026,0.0002969,2]
[422457426,1778967051000,-625.0,0.00029637,2]
[422457417,1778967051000,-150.0,0.00029534,2]
[422457463,1778967051000,-151.0,0.0003013,7]
[422457519,1778967051000,-200.0,0.00031043,2]
[422457464,1778967051000,-200.0,0.0003013,2]
[422457503,1778967051000,-158.81822993,0.0003054,7]
[422457499,1778967051000,-349.76600115,0.0003054,7]
[422457498,1778967051000,-303.23004762,0.00030537,7]
[422457494,1778967051000,-200.0,0.00030431,2]
[422457492,1778967051000,-200.0,0.00030431,2]
[422457495,1778967051000,-200.0,0.00030431,2]
[422457501,1778967051000,-353.99624591,0.0003054,7]
[422457497,1778967051000,-300.5044847,0.00030537,2]
[422457500,1778967051000,-159.11707341,0.0003054,7]
[422457504,1778967051000,-200.0,0.00030736,2]
[422457506,1778967051000,-200.0,0.00030736,2]
[422457505,1778967051000,-200.0,0.00030736,2]
[422457496,1778967051000,-201.93286099,0.00030463,2]
[422457507,1778967051000,-200.0,0.00030736,2]
[422457509,1778967051000,-1174.53,0.000309,7]
[422457512,1778967051000,-8321.47,0.00031,14]
[422457510,1778967051000,-161.0,0.00030921,3]
[422457513,1778967051000,-209.40437684,0.00031011,2]
[422457511,1778967051000,-404.07,0.00031,7]
[422457514,1778967051000,-150.0,0.00031011,2]
[422457517,1778967051000,-200.0,0.00031043,2]
[422457520,1778967051000,-1486.69,0.00031091,7]
[422457516,1778967051000,-200.0,0.00031043,2]
[422457518,1778967051000,-200.0,0.00031043,2]
[422457521,1778967051000,-200.0,0.00031096,2]
[422457461,1778967051000,-151.0,0.0003013,7]
[422457515,1778967051000,-1000.0,0.00031013,2]
[422457502,1778967051000,-156.33367028,0.0003054,7]
[422457508,1778967051000,-546.0,0.00030875,6]
[422457489,1778967051000,-851.9,0.00030239,2]
[422457459,1778967051000,-151.0,0.0003013,7]
[422457493,1778967051000,-200.0,0.00030431,2]
[422457465,1778967051000,-199.293253,0.0003013,7]
[422457466,1778967051000,-199.293253,0.0003013,7]
[422457468,1778967051000,-199.293253,0.0003013,7]
[422457478,1778967051000,-679.41,0.00030137,2]
[422457479,1778967051000,-200.0,0.00030137,2]
[422457472,1778967051000,-886.0,0.00030133,30]
[422457471,1778967051000,-200.0,0.0003013,2]
[422457470,1778967051000,-2000.0,0.0003013,2]
[422457473,1778967051000,-274.0,0.00030133,30]
[422457467,1778967051000,-199.293253,0.0003013,7]
[422457477,1778967051000,-152.0,0.00030135,30]
[422457475,1778967051000,-155.0,0.00030135,30]
[422457469,1778967051000,-200.0,0.0003013,2]
[422457474,1778967051000,-153.0,0.00030133,30]
[422457488,1778967051000,-213.0,0.00030167,30]
[422457487,1778967051000,-212.0,0.00030167,30]
[422457486,1778967051000,-740.0,0.00030167,30]
[422457484,1778967051000,-151.0,0.00030166,30]
[422457482,1778967051000,-150.0,0.00030137,30]
[422457485,1778967051000,-577.0,0.00030166,30]
[422457490,1778967051000,-546.0,0.00030341,5]
[422457491,1778967051000,-180.48177615,0.0003038,5]
[422457481,1778967051000,-1000.0,0.00030137,30]
[422457480,1778967051000,-298.68,0.00030137,2]
[422457476,1778967051000,-418.0,0.00030135,30]
[422457483,1778967051000,-206.0,0.00030166,30]
[422457571,1778967052000,-204.53,0.00032,31]
[422457561,1778967052000,-312.66734055,0.00031446,7]
[422457560,1778967052000,-263.2447048,0.00031446,7]
[422457563,1778967052000,-1000.0,0.000315,7]
[422457564,1778967052000,-2180.63,0.00031507,30]
[422457562,1778967052000,-317.63645987,0.00031446,7]
[422457555,1778967052000,-248.18147068,0.00031446,7]
[422457559,1778967052000,-530.99436886,0.00031446,7]
[422457557,1778967052000,-164.68699442,0.00031446,7]
[422457566,1778967052000,-1903.1359258,0.00031713,2]
[422457558,1778967052000,-318.23414683,0.00031446,7]
[422457556,1778967052000,-524.64900173,0.00031446,7]
[422457565,1778967052000,-217.15233878,0.00031559,2]
[422457568,1778967052000,-500.0,0.00031777,120]
[422457586,1778967052000,-351.05400467,0.00032047,7]
[422457578,1778967052000,-400.51385687,0.00032047,7]
[422457567,1778967052000,-131959.7540333,0.00031713,2]
[422457579,1778967052000,-211.15173831,0.00032047,5]
[422457570,1778967052000,-3188.447,0.00032,31]
[422457569,1778967052000,-546.0,0.00031943,7]
[422457573,1778967052000,-8321.47,0.00032,14]
[422457572,1778967052000,-404.07,0.00032,7]
[422457575,1778967052000,-534.64414511,0.00032047,7]
[422457574,1778967052000,-999.29351013,0.00032011,2]
[422457576,1778967052000,-524.67085707,0.00032047,7]
[422457580,1778967052000,-579.89286309,0.00032047,7]
[422457585,1778967052000,-179.2138014,0.00032047,7]
[422457554,1778967052000,-241.24251113,0.00031446,7]
[422457577,1778967052000,-408.96815846,0.00032047,7]
[422457551,1778967052000,-207.56855496,0.00031443,7]
[422457523,1778967052000,-151.0,0.00031125,7]
[422457549,1778967052000,-259.70975591,0.00031443,7]
[422457587,1778967052000,-205.02579286,0.00032047,7]
[422457527,1778967052000,-153.0,0.00031133,30]
[422457524,1778967052000,-151.0,0.00031125,7]
[422457522,1778967052000,-151.0,0.00031125,7]
[422457525,1778967052000,-886.0,0.00031133,30]
[422457526,1778967052000,-274.0,0.00031133,30]
[422457528,1778967052000,-155.0,0.00031135,30]
[422457529,1778967052000,-418.0,0.00031135,30]
[422457535,1778967052000,-212.0,0.00031167,30]
[422457531,1778967052000,-206.0,0.00031166,30]
[422457536,1778967052000,-213.0,0.00031167,30]
[422457540,1778967052000,-200.0,0.00031353,2]
[422457538,1778967052000,-200.0,0.00031353,2]
[422457534,1778967052000,-740.0,0.00031167,30]
[422457530,1778967052000,-160.81567875,0.00031135,30]
[422457539,1778967052000,-200.0,0.00031353,2]
[422457533,1778967052000,-577.0,0.00031166,30]
[422457532,1778967052000,-151.0,0.00031166,30]
[422457537,1778967052000,-1198.05,0.000312,7]
[422457542,1778967052000,-546.0,0.00031409,6]
[422457553,1778967052000,-454.84507143,0.00031443,7]
[422457541,1778967052000,-200.0,0.00031353,2]
[422457543,1778967052000,-267.32207255,0.00031443,7]
[422457552,1778967052000,-450.75672705,0.00031443,2]
[422457544,1778967052000,-262.33542854,0.00031443,7]
[422457546,1778967052000,-200.25692844,0.00031443,7]
[422457550,1778967052000,-206.13548185,0.00031443,7]
[422457547,1778967052000,-289.94643154,0.00031443,7]
[422457545,1778967052000,-204.48407923,0.00031443,7]
[422457548,1778967052000,-289.09716566,0.00031443,7]
[422457581,1778967052000,-162.26913068,0.00032047,7]
[422457643,1778967052000,-2547.0,0.0003224,2]
[422457589,1778967052000,-519.41951183,0.00032047,7]
[422457629,1778967052000,-153.0,0.00032133,30]
[422457620,1778967052000,-171.927388,0.0003205,7]
[422457621,1778967052000,-469.00101083,0.0003205,7]
[422457618,1778967052000,-334.73444718,0.0003205,2]
[422457630,1778967052000,-155.0,0.00032135,30]